fUSD/lending_fUSD_20260521
["ID","MTS","AMOUNT","RATE_DAILY","PERIOD"]
[422735871,1779340182000,-2083.97,0.00039873,120]
[422735884,1779340182000,-500.0,0.00039873,120]
[422735872,1779340182000,-2083.97,0.00039873,120]
[422735870,1779340182000,-2083.97,0.00039873,120]
[422735882,1779340182000,-2084.130132,0.00039873,120]
[422735881,1779340182000,-2083.97,0.00039873,120]
[422735879,1779340182000,-2083.97,0.00039873,120]
[422735880,1779340182000,-2083.97,0.00039873,120]
[422735883,1779340182000,-500.0,0.00039873,120]
[422735877,1779340182000,-2083.97,0.00039873,120]
[422735876,1779340182000,-2083.97,0.00039873,120]
[422735875,1779340182000,-2083.97,0.00039873,120]
[422735873,1779340182000,-2083.97,0.00039873,120]
[422735874,1779340182000,-2083.97,0.00039873,120]
[422735878,1779340182000,-2083.97,0.00039873,120]
[422735893,1779340183000,-500.0,0.00039873,120]
[422735894,1779340183000,-500.0,0.00039873,120]
[422735891,1779340183000,-500.0,0.00039873,120]
[422735890,1779340183000,-500.0,0.00039873,120]
[422735887,1779340183000,-500.0,0.00039873,120]
[422735889,1779340183000,-500.0,0.00039873,120]
[422735885,1779340183000,-500.0,0.00039873,120]
[422735886,1779340183000,-500.0,0.00039873,120]
[422735895,1779340183000,-500.0,0.00039873,120]
[422735888,1779340183000,-500.0,0.00039873,120]
[422735896,1779340183000,-500.0,0.00039873,120]
[422735892,1779340183000,-500.0,0.00039873,120]
[422735899,1779340183000,-500.0,0.00039873,120]
[422735909,1779340183000,-549.57768095,0.00039873,120]
[422735908,1779340183000,-574.29915204,0.00039873,120]
[422735904,1779340183000,-501.1086628,0.00039873,120]
[422735906,1779340183000,-220.45116191,0.00039873,120]
[422735905,1779340183000,-150.999999,0.00039873,120]
[422735897,1779340183000,-500.0,0.00039873,120]
[422735902,1779340183000,-500.0,0.00039873,120]
[422735901,1779340183000,-500.0,0.00039873,120]
[422735907,1779340183000,-500.0,0.00039873,120]
[422735900,1779340183000,-500.0,0.00039873,120]
[422735898,1779340183000,-500.0,0.00039873,120]
[422735903,1779340183000,-500.0,0.00039873,120]
[422735921,1779340184000,-500.0,0.00039873,120]
[422735918,1779340184000,-500.0,0.00039873,120]
[422735919,1779340184000,-500.0,0.00039873,120]
[422735917,1779340184000,-500.0,0.00039873,120]
[422735916,1779340184000,-500.0,0.00039873,120]
[422735912,1779340184000,-500.0,0.00039873,120]
[422735914,1779340184000,-534.07127241,0.00039873,120]
[422735913,1779340184000,-500.0,0.00039873,120]
[422735910,1779340184000,-258.0,0.00039873,120]
[422735911,1779340184000,-500.0,0.00039873,120]
[422735920,1779340184000,-500.0,0.00039873,120]
[422735915,1779340184000,-500.0,0.00039873,120]
[422735922,1779340184000,-500.0,0.00039873,120]
[422735924,1779340184000,-500.0,0.00039873,120]
[422735925,1779340184000,-500.0,0.00039873,120]
[422735936,1779340184000,-500.0,0.00039873,120]
[422735934,1779340184000,-21289.14276485,0.00039873,120]
[422735935,1779340184000,-500.0,0.00039873,120]
[422735932,1779340184000,-500.0,0.00039873,120]
[422735933,1779340184000,-416.8242,0.00039873,120]
[422735931,1779340184000,-500.0,0.00039873,120]
[422735937,1779340184000,-500.0,0.00039873,120]
[422735929,1779340184000,-500.0,0.00039873,120]
[422735928,1779340184000,-500.0,0.00039873,120]
[422735926,1779340184000,-500.0,0.00039873,120]
[422735927,1779340184000,-500.0,0.00039873,120]
[422735923,1779340184000,-500.0,0.00039873,120]
[422735930,1779340184000,-500.0,0.00039873,120]
[422735949,1779340185000,-5213.98,0.00039873,120]
[422735946,1779340185000,-5213.98,0.00039873,120]
[422735947,1779340185000,-5213.98,0.00039873,120]
[422735945,1779340185000,-5213.98,0.00039873,120]
[422735942,1779340185000,-5213.98,0.00039873,120]
[422735940,1779340185000,-5213.98,0.00039873,120]
[422735943,1779340185000,-5213.98,0.00039873,120]
[422735941,1779340185000,-5213.98,0.00039873,120]
[422735939,1779340185000,-5213.98,0.00039873,120]
[422735938,1779340185000,-527.58,0.00039873,120]
[422735948,1779340185000,-5213.98,0.00039873,120]
[422735944,1779340185000,-5213.98,0.00039873,120]
[422735950,1779340185000,-5213.98,0.00039873,120]
[422735965,1779340185000,-500.0,0.00039873,120]
[422735953,1779340185000,-5213.98,0.00039873,120]
[422735952,1779340185000,-5213.98,0.00039873,120]
[422735964,1779340185000,-500.0,0.00039873,120]
[422735963,1779340185000,-425.94905056,0.00039873,120]
[422735962,1779340185000,-5214.06152457,0.00039873,120]
[422735959,1779340185000,-5213.98,0.00039873,120]
[422735961,1779340185000,-5213.98,0.00039873,120]
[422735960,1779340185000,-5213.98,0.00039873,120]
[422735956,1779340185000,-5213.98,0.00039873,120]
[422735957,1779340185000,-5213.98,0.00039873,120]
[422735955,1779340185000,-5213.98,0.00039873,120]
[422735954,1779340185000,-5213.98,0.00039873,120]
[422735951,1779340185000,-5213.98,0.00039873,120]
[422735958,1779340185000,-5213.98,0.00039873,120]
[422735975,1779340186000,-863.18,0.00039873,120]
[422735976,1779340186000,-863.18,0.00039873,120]
[422735977,1779340186000,-863.18,0.00039873,120]
[422735973,1779340186000,-500.0,0.00039873,120]
[422735974,1779340186000,-863.18,0.00039873,120]
[422735966,1779340186000,-243.21443021,0.00039873,120]
[422735972,1779340186000,-500.0,0.00039873,120]
[422735970,1779340186000,-500.0,0.00039873,120]
[422735968,1779340186000,-500.0,0.00039873,120]
[422735969,1779340186000,-500.0,0.00039873,120]
[422735967,1779340186000,-500.0,0.00039873,120]
[422735971,1779340186000,-582.10574434,0.00039873,120]
[422735978,1779340186000,-863.18,0.00039873,120]
[422735982,1779340186000,-863.18,0.00039873,120]
[422735980,1779340186000,-863.18,0.00039873,120]
[422735992,1779340186000,-863.18,0.00039873,120]
[422735991,1779340186000,-863.18,0.00039873,120]
[422735989,1779340186000,-863.18,0.00039873,120]
[422735990,1779340186000,-863.18,0.00039873,120]
[422735988,1779340186000,-863.18,0.00039873,120]
[422735979,1779340186000,-863.18,0.00039873,120]
[422735986,1779340186000,-863.18,0.00039873,120]
[422735984,1779340186000,-863.18,0.00039873,120]
[422735985,1779340186000,-863.18,0.00039873,120]
[422735983,1779340186000,-863.18,0.00039873,120]
[422735981,1779340186000,-863.18,0.00039873,120]
[422735987,1779340186000,-863.18,0.00039873,120]
[422736001,1779340187000,-500.0,0.00039873,120]
[422736002,1779340187000,-500.0,0.00039873,120]
[422736000,1779340187000,-500.0,0.00039873,120]
[422735998,1779340187000,-500.0,0.00039873,120]
[422735999,1779340187000,-627.75865912,0.00039873,120]
[422735996,1779340187000,-863.18,0.00039873,120]
[422735997,1779340187000,-863.20633024,0.00039873,120]
[422735994,1779340187000,-863.18,0.00039873,120]
[422735993,1779340187000,-863.18,0.00039873,120]
[422736004,1779340187000,-500.0,0.00039873,120]
[422735995,1779340187000,-863.18,0.00039873,120]
[422736003,1779340187000,-500.0,0.00039873,120]
[422736005,1779340187000,-500.0,0.00039873,120]
[422736006,1779340187000,-500.0,0.00039873,120]
[422736016,1779340187000,-500.0,0.00039873,120]
[422736014,1779340187000,-500.0,0.00039873,120]
[422736015,1779340187000,-500.0,0.00039873,120]
[422736012,1779340187000,-500.0,0.00039873,120]
[422736013,1779340187000,-500.0,0.00039873,120]
[422736017,1779340187000,-500.0,0.00039873,120]
[422736010,1779340187000,-500.0,0.00039873,120]
[422736009,1779340187000,-500.0,0.00039873,120]
[422736007,1779340187000,-500.0,0.00039873,120]
[422736008,1779340187000,-500.0,0.00039873,120]
[422736011,1779340187000,-500.0,0.00039873,120]
[422736026,1779340188000,-4629.93,0.00039873,120]
[422736027,1779340188000,-4629.93,0.00039873,120]
[422736024,1779340188000,-4629.93,0.00039873,120]
[422736025,1779340188000,-4629.93,0.00039873,120]
[422736023,1779340188000,-4629.93,0.00039873,120]
[422736021,1779340188000,-4629.93,0.00039873,120]
[422736018,1779340188000,-160.40782805,0.00039873,120]
[422736020,1779340188000,-4629.93,0.00039873,120]
[422736019,1779340188000,-4629.93,0.00039873,120]
[422736029,1779340188000,-4629.93,0.00039873,120]
[422736022,1779340188000,-4629.93,0.00039873,120]
[422736028,1779340188000,-4629.93,0.00039873,120]
[422736043,1779340188000,-1008.51350861,0.00039873,120]
[422736032,1779340188000,-4629.93,0.00039873,120]
[422736030,1779340188000,-4629.93,0.00039873,120]
[422736041,1779340188000,-4629.93,0.00039873,120]
[422736042,1779340188000,-4630.03190626,0.00039873,120]
[422736039,1779340188000,-4629.93,0.00039873,120]
[422736038,1779340188000,-4629.93,0.00039873,120]
[422736040,1779340188000,-4629.93,0.00039873,120]
[422736037,1779340188000,-4629.93,0.00039873,120]
[422736033,1779340188000,-4629.93,0.00039873,120]
[422736035,1779340188000,-4629.93,0.00039873,120]
[422736034,1779340188000,-4629.93,0.00039873,120]
[422736031,1779340188000,-4629.93,0.00039873,120]
[422736036,1779340188000,-4629.93,0.00039873,120]
[422736051,1779340189000,-7714.79,0.00039873,120]
[422736054,1779340189000,-7714.79,0.00039873,120]
[422736052,1779340189000,-7714.79,0.00039873,120]
[422736053,1779340189000,-7714.79,0.00039873,120]
[422736049,1779340189000,-7714.79,0.00039873,120]
[422736056,1779340189000,-7714.79,0.00039873,120]
[422736047,1779340189000,-7714.79,0.00039873,120]
[422736048,1779340189000,-7714.79,0.00039873,120]
[422736046,1779340189000,-7714.79,0.00039873,120]
[422736044,1779340189000,-7714.79,0.00039873,120]
[422736050,1779340189000,-7714.79,0.00039873,120]
[422736055,1779340189000,-7714.79,0.00039873,120]
[422736045,1779340189000,-7714.79,0.00039873,120]
[422736058,1779340189000,-7714.79,0.00039873,120]
[422736057,1779340189000,-7714.79,0.00039873,120]
[422736070,1779340189000,-1152.16242965,0.00039873,120]
[422736069,1779340189000,-7626.85639601,0.00039873,120]
[422736067,1779340189000,-7714.91391519,0.00039873,120]
[422736066,1779340189000,-7714.79,0.00039873,120]
[422736064,1779340189000,-7714.79,0.00039873,120]
[422736068,1779340189000,-157517.58892605,0.00039873,120]
[422736065,1779340189000,-7714.79,0.00039873,120]
[422736062,1779340189000,-7714.79,0.00039873,120]
[422736060,1779340189000,-7714.79,0.00039873,120]
[422736061,1779340189000,-7714.79,0.00039873,120]
[422736059,1779340189000,-7714.79,0.00039873,120]
[422736063,1779340189000,-7714.79,0.00039873,120]
[422736079,1779340190000,-500.0,0.00039873,120]
[422736072,1779340190000,-500.0,0.00039873,120]
[422736071,1779340190000,-651.47124,0.00039873,120]
[422736074,1779340190000,-500.0,0.00039873,120]
[422736073,1779340190000,-500.0,0.00039873,120]
[422736075,1779340190000,-500.0,0.00039873,120]
[422736076,1779340190000,-500.0,0.00039873,120]
[422736077,1779340190000,-500.0,0.00039873,120]
[422736081,1779340190000,-500.0,0.00039873,120]
[422736078,1779340190000,-500.0,0.00039873,120]
[422736082,1779340190000,-500.0,0.00039873,120]
[422736090,1779340190000,-2061954.7140198,0.00039873,120]
[422736083,1779340190000,-500.0,0.00039873,120]
[422736084,1779340190000,-500.0,0.00039873,120]
[422736085,1779340190000,-500.0,0.00039873,120]
[422736086,1779340190000,-500.0,0.00039873,120]
[422736088,1779340190000,-500.0,0.00039873,120]
[422736087,1779340190000,-500.0,0.00039873,120]
[422736089,1779340190000,-545.70763819,0.00039873,120]
[422736080,1779340190000,-500.0,0.00039873,120]
[422736091,1779340230000,-5000000.0,0.00039873,30]
[422736097,1779340231000,-500.0,0.00013356,2]
[422736099,1779340231000,-192.45945608,0.00013571,2]
[422736102,1779340231000,-2000.0,0.00013671,2]
[422736098,1779340231000,-213.97,0.00013559,2]
[422736100,1779340231000,-363.58762725,0.00013571,2]
[422736103,1779340231000,-166.66,0.00013699,2]
[422736104,1779340231000,-200.0,0.00013699,2]
[422736105,1779340231000,-556.04708325,0.00013719,2]
[422736101,1779340231000,-276.73,0.00013614,2]
[422736110,1779340232000,-166.66,0.00013973,2]
[422736107,1779340232000,-500.0,0.00013801,2]
[422736106,1779340232000,-2636.58,0.00013801,2]
[422736108,1779340232000,-166.66,0.00013836,2]
[422736109,1779340232000,-556.04708325,0.00013866,2]
[422736111,1779340232000,-556.04708325,0.00014014,2]
[422736112,1779340232000,-275.18443606,0.00014062,2]
[422736113,1779340232000,-260.03248731,0.00014062,2]
[422736118,1779340232000,-166.66,0.00014247,2]
[422736114,1779340232000,-437.436765,0.00014062,2]
[422736115,1779340232000,-1527.34631163,0.00014062,2]
[422736116,1779340232000,-166.66,0.0001411,2]
[422736119,1779340232000,-500.0,0.00014255,2]
[422736122,1779340232000,-22448.58690659,0.00014256,2]
[422736120,1779340232000,-980.62,0.00014255,2]
[422736123,1779340232000,-450.71712781,0.00014256,2]
[422736121,1779340232000,-14655.21914437,0.00014256,2]
[422736117,1779340232000,-556.04708325,0.00014162,2]
[422736187,1779340238000,-2500.0,0.00014692,2]
[422736186,1779340238000,-2500.0,0.00014692,2]
[422736188,1779340238000,-2500.0,0.00014692,2]
[422736191,1779340238000,-436.18711,0.0001475,2]
[422736199,1779340238000,-436.18711,0.0001477,2]
[422736185,1779340238000,-2500.0,0.00014692,2]
[422736197,1779340238000,-200.0,0.00014769,2]
[422736193,1779340238000,-436.18711,0.0001475,2]
[422736195,1779340238000,-556.04708325,0.00014752,2]
[422736190,1779340238000,-500.0,0.00014726,2]
[422736184,1779340238000,-300.0,0.00014692,2]
[422736215,1779340238000,-5000.0,0.00014899,2]
[422736213,1779340238000,-206.78123832,0.00014868,2]
[422736201,1779340238000,-576.339,0.00014773,2]
[422736203,1779340238000,-2636.58,0.00014798,2]
[422736189,1779340238000,-602.88097414,0.000147,2]
[422736175,1779340238000,-166.66,0.00014384,2]
[422736177,1779340238000,-556.04708325,0.00014457,2]
[422736180,1779340238000,-300.0,0.00014692,2]
[422736207,1779340238000,-1000.0,0.00014818,2]
[422736166,1779340238000,-1157.13607521,0.00014256,2]
[422736165,1779340238000,-250.0,0.00014,2]
[422736168,1779340238000,-885.7746593,0.00014256,2]
[422736167,1779340238000,-25964.29471302,0.00014256,2]
[422736169,1779340238000,-556.04708325,0.00014309,2]
[422736170,1779340238000,-1354.0,0.00014372,2]
[422736179,1779340238000,-2500.0,0.00014692,2]
[422736171,1779340238000,-625.0,0.00014372,2]
[422736174,1779340238000,-3634.0,0.00014372,2]
[422736182,1779340238000,-300.0,0.00014692,2]
[422736176,1779340238000,-676.0,0.00014437,2]
[422736183,1779340238000,-300.0,0.00014692,2]
[422736173,1779340238000,-418.0,0.00014372,2]
[422736178,1779340238000,-556.04708325,0.00014605,2]
[422736181,1779340238000,-300.0,0.00014692,2]
[422736172,1779340238000,-927.0,0.00014372,2]
[422736205,1779340238000,-500.0,0.00014798,2]
[422736227,1779340238000,-436.18711,0.00014899,2]
[422736219,1779340238000,-151.52628247,0.00014899,2]
[422736267,1779340238000,-980.62,0.00014947,2]
[422736255,1779340238000,-529.83147233,0.000149,2]
[422736269,1779340238000,-3220.0261419,0.00014953,2]
[422736273,1779340238000,-500.0,0.0001497,2]
[422736271,1779340238000,-1040.21850325,0.00014962,2]
[422736261,1779340238000,-150.0,0.00014925,2]
[422736257,1779340238000,-556.04708325,0.000149,2]
[422736275,1779340238000,-400.0,0.0001497,2]
[422736259,1779340238000,-2175.23071101,0.000149,2]
[422736277,1779340238000,-700.0,0.0001497,2]
[422736281,1779340238000,-700.0,0.0001497,2]
[422736279,1779340238000,-400.0,0.0001497,2]
[422736286,1779340238000,-700.0,0.0001497,2]
[422736288,1779340238000,-400.0,0.0001497,2]
[422736283,1779340238000,-400.0,0.0001497,2]
[422736265,1779340238000,-500.0,0.00014944,2]
[422736263,1779340238000,-669.6236309,0.00014938,2]
[422736253,1779340238000,-9704.05738538,0.000149,3]
[422736250,1779340238000,-46856.46747362,0.000149,2]
[422736209,1779340238000,-14431.1559664,0.00014826,2]
[422736221,1779340238000,-200.0,0.00014899,2]
[422736225,1779340238000,-500.0,0.00014899,2]
[422736211,1779340238000,-216.0,0.00014861,2]
[422736223,1779340238000,-2636.58,0.00014899,2]
[422736237,1779340238000,-1075.46137394,0.00014899,2]
[422736231,1779340238000,-436.18712,0.00014899,2]
[422736290,1779340238000,-700.0,0.0001497,2]
[422736239,1779340238000,-1075.46137394,0.00014899,2]
[422736235,1779340238000,-1075.46137394,0.00014899,2]
[422736229,1779340238000,-436.18712,0.00014899,2]
[422736241,1779340238000,-1075.46137394,0.000149,2]
[422736246,1779340238000,-1075.46137394,0.000149,2]
[422736244,1779340238000,-1075.46137394,0.000149,2]
[422736248,1779340238000,-14220.53252638,0.000149,2]
[422736233,1779340238000,-1075.46137394,0.00014899,2]
[422736218,1779340238000,-151.0,0.00014899,2]
[422736299,1779340239000,-6823.87759836,0.00014986,2]
[422736292,1779340239000,-700.0,0.0001497,2]
[422736297,1779340239000,-161.0,0.00014986,2]
[422736294,1779340239000,-800.0,0.0001497,2]
[422736296,1779340239000,-1153.0,0.00014986,2]
[422736673,1779340243000,-541.15284276,0.00013801,2]
[422736672,1779340243000,-274.06078536,0.00013801,2]
[422736679,1779340246000,-3953.27122805,0.00014156,2]
[422736678,1779340246000,-7414.12478877,0.00014156,2]
[422736677,1779340246000,-1491.79637188,0.00013801,2]
[422736687,1779340258000,-500.0,0.00039873,90]
[422736686,1779340258000,-500.0,0.00039873,90]
[422736684,1779340258000,-205.77247591,0.00039873,70]
[422736682,1779340258000,-3638.90877248,0.00039873,60]
[422736683,1779340258000,-500.0,0.00039873,70]
[422736681,1779340258000,-194235.12310004,0.00039873,60]
[422736680,1779340258000,-3066.73028624,0.00039873,60]
[422736685,1779340258000,-500.0,0.00039873,90]
[422736689,1779340258000,-717.82450277,0.00039873,60]
[422736688,1779340258000,-480.47909288,0.00039873,90]
[422736691,1779340258000,-227.62402282,0.00039873,60]
[422736693,1779340258000,-527.33370969,0.00039873,60]
[422736692,1779340258000,-379.30945314,0.00039873,90]
[422736694,1779340258000,-374.75079415,0.00039873,91]
[422736695,1779340258000,-547.61937377,0.00039873,60]
[422736696,1779340258000,-3239.70347961,0.00039873,60]
[422736697,1779340258000,-367.4544198,0.00039873,90]
[422736699,1779340258000,-187.97468333,0.00039873,60]
[422736698,1779340258000,-631.24288421,0.00039873,60]
[422736700,1779340258000,-161.51113194,0.00039873,60]
[422736690,1779340258000,-200.90861589,0.00039873,90]
[422736709,1779340259000,-3000.0,0.00039873,90]
[422736707,1779340259000,-15260.84728874,0.00039873,90]
[422736708,1779340259000,-164.18,0.00039873,60]
[422736705,1779340259000,-1598.2990572,0.00039873,60]
[422736701,1779340259000,-173.56195178,0.00039873,60]
[422736703,1779340259000,-282.9288222,0.00039873,60]
[422736704,1779340259000,-311.54899976,0.00039873,90]
[422736702,1779340259000,-2363.05300394,0.00039873,60]
[422736711,1779340259000,-40685.2859802,0.00039873,120]
[422736706,1779340259000,-5459.95269688,0.00039873,60]
[422736710,1779340259000,-5342.73849977,0.00039873,60]
[422736723,1779340259000,-500.0,0.00039873,120]
[422736714,1779340259000,-500.0,0.00039873,120]
[422736724,1779340259000,-468.26594709,0.00039873,120]
[422736722,1779340259000,-500.0,0.00039873,120]
[422736721,1779340259000,-500.0,0.00039873,120]
[422736720,1779340259000,-500.0,0.00039873,120]
[422736719,1779340259000,-500.0,0.00039873,120]
[422736712,1779340259000,-127383.08322098,0.00039873,90]
[422736717,1779340259000,-500.0,0.00039873,120]
[422736716,1779340259000,-500.0,0.00039873,120]
[422736715,1779340259000,-500.0,0.00039873,120]
[422736713,1779340259000,-31555.91814698,0.00039873,60]
[422736718,1779340259000,-500.0,0.00039873,120]
[422736734,1779340260000,-500.0,0.00039873,120]
[422736733,1779340260000,-500.0,0.00039873,120]
[422736731,1779340260000,-152.0,0.00039873,120]
[422736732,1779340260000,-500.0,0.00039873,120]
[422736730,1779340260000,-152.0,0.00039873,120]
[422736728,1779340260000,-152.0,0.00039873,120]
[422736726,1779340260000,-152.0,0.00039873,120]
[422736727,1779340260000,-152.0,0.00039873,120]
[422736725,1779340260000,-432.69846952,0.00039873,120]
[422736735,1779340260000,-531.58699923,0.00039873,120]
[422736729,1779340260000,-152.0,0.00039873,120]
[422736737,1779340260000,-10800.0,0.00039873,120]
[422736736,1779340260000,-10000.0,0.00039873,120]
[422736738,1779340260000,-10000.0,0.00039873,120]
[422736750,1779340260000,-500.0,0.00039873,120]
[422736749,1779340260000,-500.0,0.00039873,120]
[422736746,1779340260000,-1552.0,0.00039873,120]
[422736747,1779340260000,-1552.0,0.00039873,120]
[422736745,1779340260000,-1552.0,0.00039873,120]
[422736748,1779340260000,-1410.87,0.00039873,120]
[422736743,1779340260000,-1552.0,0.00039873,120]
[422736742,1779340260000,-1552.0,0.00039873,120]
[422736741,1779340260000,-10000.0,0.00039873,120]
[422736740,1779340260000,-13920.0,0.00039873,120]
[422736739,1779340260000,-10880.0,0.00039873,120]
[422736744,1779340260000,-1552.0,0.00039873,120]
[422736759,1779340261000,-499.44488243,0.00039873,120]
[422736760,1779340261000,-500.0,0.00039873,120]
[422736758,1779340261000,-500.0,0.00039873,120]
[422736757,1779340261000,-446.23525525,0.00039873,120]
[422736756,1779340261000,-500.0,0.00039873,120]
[422736753,1779340261000,-500.0,0.00039873,120]
[422736754,1779340261000,-531.45613755,0.00039873,120]
[422736751,1779340261000,-500.0,0.00039873,120]
[422736752,1779340261000,-500.0,0.00039873,120]
[422736762,1779340261000,-446.6676996,0.00039873,120]
[422736755,1779340261000,-500.0,0.00039873,120]
[422736761,1779340261000,-562.37232819,0.00039873,120]
[422736776,1779340261000,-247.09623604,0.00039873,120]
[422736765,1779340261000,-500.0,0.00039873,120]
[422736763,1779340261000,-500.0,0.00039873,120]
[422736775,1779340261000,-247.09623604,0.00039873,120]
[422736774,1779340261000,-247.09623604,0.00039873,120]
[422736772,1779340261000,-247.09623604,0.00039873,120]
[422736771,1779340261000,-247.09623604,0.00039873,120]
[422736773,1779340261000,-247.09623604,0.00039873,120]
[422736770,1779340261000,-247.09623604,0.00039873,120]
[422736768,1779340261000,-500.0,0.00039873,120]
[422736767,1779340261000,-529.29603911,0.00039873,120]
[422736766,1779340261000,-500.0,0.00039873,120]
[422736764,1779340261000,-500.0,0.00039873,120]
[422736769,1779340261000,-6000.0,0.00039873,120]
[422736784,1779340262000,-247.09623601,0.00039873,120]
[422736787,1779340262000,-552.42669003,0.00039873,120]
[422736785,1779340262000,-500.0,0.00039873,120]
[422736786,1779340262000,-544.7232592,0.00039873,120]
[422736782,1779340262000,-247.09623604,0.00039873,120]
[422736777,1779340262000,-247.09623604,0.00039873,120]
[422736780,1779340262000,-247.09623604,0.00039873,120]
[422736781,1779340262000,-247.09623604,0.00039873,120]
[422736779,1779340262000,-247.09623604,0.00039873,120]
[422736778,1779340262000,-247.09623604,0.00039873,120]
[422736783,1779340262000,-247.09623604,0.00039873,120]
[422736788,1779340262000,-500.0,0.00039873,120]
[422736789,1779340262000,-565.77215165,0.00039873,120]
[422736792,1779340262000,-594.49119014,0.00039873,120]
[422736790,1779340262000,-555.31271229,0.00039873,120]
[422736803,1779340262000,-500.0,0.00039873,120]
[422736801,1779340262000,-500.0,0.00039873,120]
[422736799,1779340262000,-500.0,0.00039873,120]
[422736800,1779340262000,-500.0,0.00039873,120]
[422736798,1779340262000,-563.05027176,0.00039873,120]
[422736802,1779340262000,-500.0,0.00039873,120]
[422736797,1779340262000,-500.0,0.00039873,120]
[422736795,1779340262000,-493.67140732,0.00039873,120]
[422736793,1779340262000,-528.33679976,0.00039873,120]
[422736794,1779340262000,-500.0,0.00039873,120]
[422736791,1779340262000,-536.33771136,0.00039873,120]
[422736796,1779340262000,-500.0,0.00039873,120]
[422736814,1779340263000,-500.0,0.00039873,120]
[422736813,1779340263000,-500.0,0.00039873,120]
[422736810,1779340263000,-213.81555627,0.00039873,120]
[422736812,1779340263000,-565.67642745,0.00039873,120]
[422736811,1779340263000,-614.30422562,0.00039873,120]
[422736808,1779340263000,-580.14237659,0.00039873,120]
[422736807,1779340263000,-500.0,0.00039873,120]
[422736806,1779340263000,-275.20939051,0.00039873,120]
[422736804,1779340263000,-356.26,0.00039873,120]
[422736816,1779340263000,-500.0,0.00039873,120]
[422736809,1779340263000,-500.0,0.00039873,120]
[422736817,1779340263000,-500.0,0.00039873,120]
[422736805,1779340263000,-500.0,0.00039873,120]
[422736818,1779340263000,-500.0,0.00039873,120]
[422736829,1779340263000,-500.0,0.00039873,120]
[422736830,1779340263000,-553.52,0.00039873,120]
[422736828,1779340263000,-500.0,0.00039873,120]
[422736826,1779340263000,-500.0,0.00039873,120]
[422736827,1779340263000,-500.0,0.00039873,120]
[422736825,1779340263000,-500.0,0.00039873,120]
[422736815,1779340263000,-641.707209,0.00039873,120]
[422736824,1779340263000,-500.0,0.00039873,120]
[422736821,1779340263000,-500.0,0.00039873,120]
[422736822,1779340263000,-500.0,0.00039873,120]
[422736820,1779340263000,-500.0,0.00039873,120]
[422736819,1779340263000,-500.0,0.00039873,120]
[422736823,1779340263000,-569.93686106,0.00039873,120]
[422736842,1779340264000,-572.59,0.00039873,120]
[422736841,1779340264000,-500.0,0.00039873,120]
[422736840,1779340264000,-500.0,0.00039873,120]
[422736837,1779340264000,-500.0,0.00039873,120]
[422736838,1779340264000,-500.0,0.00039873,120]
[422736835,1779340264000,-500.0,0.00039873,120]
[422736836,1779340264000,-433.9,0.00039873,120]
[422736834,1779340264000,-500.0,0.00039873,120]
[422736832,1779340264000,-631.04495,0.00039873,120]
[422736833,1779340264000,-500.0,0.00039873,120]
[422736843,1779340264000,-500.0,0.00039873,120]
[422736839,1779340264000,-500.0,0.00039873,120]
[422736831,1779340264000,-500.0,0.00039873,120]
[422736847,1779340264000,-183.17,0.00039873,120]
[422736845,1779340264000,-574.61229566,0.00039873,120]